Cogmind - Beta 13 @@@ ROGUE MODE // 2024.05.04 @ 14:13:51 Player: Cherman0 Result: Destroyed by S-27 Virus with Autogun Performance ------------- Evolutions (6) 3000 Regions Visited (22) 4400 Robots Destroyed (196) 980 Value Destroyed (5322) 5322 Prototype IDs (62) 1240 Alien Tech Used (1) 200 Bonus (2256) 2256 TOTAL SCORE: 17398 Bonus ------- High Alert Combat Kills 234 Follower Combat Kills 386 Entered Garrisons 200 Entered DSFs 500 Aligned with FarCom 300 Met Data Miner 300 Met Imprinter 300 Acquired ECA 300 Friendly Fire -264 Cogmind --------- Core Integrity 0/1150 Matter 300/300 Energy 99/100 System Corruption 0% Temperature Cool (0) Movement Core (50) Location -4/Upper Caves Parts ------- > --- POWER (2) -------- (None) > --- PROPULSION (6) --- (None) > --- UTILITY (10) ----- Enhanced Optical Array Improved Signal Interpreter Hacking Suite Improved Hacking Suite > --- WEAPON (2) ------- (None) > --- INVENTORY (5) ---- Light Nuclear Core Advanced Sensor Array Makeshift ECM Suite Improved Force Field Lance Peak State ------------ > --- POWER ------------ Light Nuclear Core Light Nuclear Core > --- PROPULSION ------- Improved Flight Unit Nuclear Pulse Array Impulse Thruster Impulse Thruster Impulse Thruster > --- UTILITY ---------- Medium Storage Unit Gravity Neutralizer Enhanced Optical Array Long-range Sensor Array Improved Signal Interpreter Microactuators Improved Transmission Jammer Layered Light Armor Plating Hacking Suite Improved Hacking Suite > --- WEAPON ----------- Lance > --- INVENTORY -------- Light Nuclear Core Centrium Wheel VTOL Module Advanced Sensor Array Makeshift ECM Suite Thermal Shield Precision Grenade Launcher Power Maul [Rating: 95] Favorites ----------- Power Light Nuclear Core Engine Deuterium Engine Power Core Light Nuclear Core Reactor Cold Fusion Reactor Propulsion Light Treads Treads Light Treads Leg Carbon-fiber Leg Wheel Wheel Flight Unit Improved Flight Unit Utility Medium Storage Unit Device Improved Cooling System Storage Medium Storage Unit Processor Improved Signal Interpreter Hackware Hacking Suite Protection Hardened Light Armor Plating Weapon Cooled Pulse Rifle Energy Gun Cooled Pulse Rifle Energy Cannon Advanced Beam Cannon Ballistic Gun Light Assault Rifle Ballistic Cannon Gauss Cannon Launcher Grenade Launcher Impact Weapon Power Maul Slashing Weapon Makeshift Sword Piercing Weapon Lance Build | -11 -10 -10 -9 -9 -9 -8 -8 -8 -7 -7 -7 -7 -6 -6 -6 -6 -6 -5 -5 -5 -4 -4 ------- Run | Yrd Mat Min Mat Min Exi Min Mat Gar Fac Low Low Zio Pro Fac Low Low Dat Pro Fac DSF Fac Upp Slots Evolved 12 | . . . 2 . . . 2 . 2 . . . . 2 . . . . 2 . 2 . Power . | . . . . . . . . . . . . . . . . . . . . . . . Propulsion 4 | . . . 1 . . . . . 2 . . . . . . . . . . . 1 . Utility 8 | . . . 1 . . . 2 . . . . . . 2 . . . . 2 . 1 . Weapon . | . . . . . . . . . . . . . . . . . . . . . . . Parts Attached 288 | 2 14 7 48 3 3 1 36 9 36 1 16 16 . 47 5 . . 3 3 1 31 6 Power 22 | . 2 . 5 . . 1 3 . 2 . 1 . . 4 . . . . . . 3 1 Engine 10 | . . . 4 . . . 3 . 1 . . . . 2 . . . . . . . . Core 11 | . 2 . 1 . . 1 . . 1 . 1 . . 1 . . . . . . 3 1 Reactor 1 | . . . . . . . . . . . . . . 1 . . . . . . . . Propulsion 63 | 2 . 1 16 1 2 . 9 2 8 . 1 1 . 8 . . . . . . 10 2 Treads 26 | 2 . . 10 1 2 . 9 2 . . . . . . . . . . . . . . Leg 5 | . . . 5 . . . . . . . . . . . . . . . . . . . Wheel 1 | . . 1 . . . . . . . . . . . . . . . . . . . . Hover . | . . . . . . . . . . . . . . . . . . . . . . . Flight 31 | . . . 1 . . . . . 8 . 1 1 . 8 . . . . . . 10 2 Utility 126 | . 3 2 10 2 . . 13 1 19 . 9 15 . 26 4 . . 1 3 1 16 1 Device 77 | . 1 1 5 2 . . 3 . 15 . 8 5 . 22 4 . . 1 . . 10 . Storage 9 | . 2 1 1 . . . 1 . 1 . . 1 . . . . . . . . 2 . Processor 14 | . . . . . . . . . 2 . . 8 . 1 . . . . 1 1 . 1 Hackware 9 | . . . . . . . 1 1 1 . . 1 . . . . . . 2 . 3 . Protection 17 | . . . 4 . . . 8 . . . 1 . . 3 . . . . . . 1 . Artifact . | . . . . . . . . . . . . . . . . . . . . . . . Weapon 77 | . 9 4 17 . 1 . 11 6 7 1 5 . . 9 1 . . 2 . . 2 2 Energy Gun 49 | . 6 3 12 . 1 . 9 3 5 . 2 . . 4 1 . . 2 . . 1 . Energy Cannon 1 | . . . 1 . . . . . . . . . . . . . . . . . . . Ballistic Gun 3 | . 1 . 1 . . . 1 . . . . . . . . . . . . . . . Ballistic Cannon 2 | . . . . . . . . . 2 . . . . . . . . . . . . . Launcher 12 | . 2 1 3 . . . 1 3 . . 1 . . . . . . . . . . 1 Special Weapon . | . . . . . . . . . . . . . . . . . . . . . . . Impact Weapon 7 | . . . . . . . . . . 1 1 . . 5 . . . . . . . . Slashing Weapon 1 | . . . . . . . . . . . 1 . . . . . . . . . . . Piercing Weapon 2 | . . . . . . . . . . . . . . . . . . . . . 1 1 Special Melee Weapon . | . . . . . . . . . . . . . . . . . . . . . . . Unidentified Prototypes 27 | . . 1 6 . . . 4 . 3 . 1 8 . 4 . . . . . . . . Parts Lost 48 | . 2 4 1 . . . 1 2 . . 1 . . 2 2 . . 6 . 1 9 17 Power 7 | . . . . . . . . . . . . . . . . . . 2 . 1 1 3 Propulsion 14 | . . 1 . . . . . . . . 1 . . 1 . . . 2 . . 3 6 Utility 21 | . . 1 1 . . . 1 2 . . . . . 1 2 . . 2 . . 5 6 Weapon 6 | . 2 2 . . . . . . . . . . . . . . . . . . . 2 Highest Loss Streak 7 | . 1 2 1 . . . 1 1 . . 1 . . 1 2 . . 4 . 1 5 7 To Critical Strikes . | . . . . . . . . . . . . . . . . . . . . . . . Average Slot Usage (%) 92 | . 92 77 97 100 100 100 92 83 99 100 91 91 92 98 95 87 87 83 62 75 83 69 Engine 6 | . 5 . 9 11 11 8 8 9 5 . . . . 5 6 6 6 4 5 11 3 . Core 3 | . 8 14 . . . 2 . . 1 7 7 7 7 5 6 6 6 4 . . 4 6 Treads 19 | . 28 17 28 33 33 33 27 27 . . . . . . . . . . . . . . Flight 9 | . . . . . . . . . 37 38 34 35 35 31 31 31 31 30 16 16 26 14 Device 8 | . 4 3 10 11 11 11 9 9 7 7 6 3 . 11 18 18 18 18 11 11 10 10 Storage 9 | . 16 13 11 11 11 11 9 9 7 7 7 6 7 6 6 6 6 6 5 5 4 4 Processor 2 | . . . . . . . . . 6 7 7 10 14 12 7 . . . 3 8 10 14 Hackware 5 | . . . . . . . 5 5 14 15 14 14 14 10 6 6 6 6 10 16 15 10 Protection 6 | . . . 9 11 11 11 14 6 . . . . . . . . . . . . 3 1 Energy Gun 16 | . 18 24 21 22 22 22 17 17 13 14 8 14 14 8 8 12 12 12 8 5 1 . Naked Turns . | . . . . . . . . . . . . . . . . . . . . . . . Heaviest Build 119 | 13 27 23 64 60 59 59 119 112 25 24 24 25 23 35 37 37 37 39 26 26 32 32 Greatest Support 60 | 40 40 40 60 60 60 60 60 60 25 25 25 25 25 41 41 39 39 39 28 30 51 44 Greatest Overweight (x) 9 | . . 1 1 . . . 1 1 . . 1 . . 1 . . . 9 8 . . 2 Average Overweight (x) . | . . . . . . . . 1 . . . . . . . . . . . . . . Largest Inventory Capacity 25 | 8 10 10 20 20 20 20 25 25 25 10 10 10 10 10 10 10 10 10 10 10 10 10 Average Capacity 16 | 8 9 9 18 20 20 20 24 25 10 10 10 9 10 10 10 10 10 10 10 10 9 9 Most Carried 25 | 6 10 10 20 20 20 20 25 25 24 10 10 10 10 10 9 8 8 9 9 10 10 10 Average Carried 15 | 3 8 8 17 20 19 20 23 24 10 10 9 9 10 9 8 8 8 8 8 9 9 8 Final Capacity 25 | 8 10 10 20 20 20 20 25 25 10 10 10 10 10 10 10 10 10 10 10 10 10 5 Final Carried 25 | 4 10 10 20 20 20 20 25 24 10 10 10 10 10 9 8 8 8 8 9 10 8 5 Class Distribution -------------------- 53% | Scavenger-Mutant 19% | Mutant 15% | Hacker-Sprinter 5% | Hacker-Scout Dominant Class ---------------- Mutant | -10/Materials Mutant | -10/Mines Scavenger-Mutant | -9/Materials Scavenger-Mutant | -9/Mines Scavenger-Mutant | -9/Exiles Scavenger-Mutant | -8/Mines Scavenger-Mutant | -8/Materials Scavenger-Mutant | -8/Garrison Hacker-Sprinter | -7/Factory Hacker-Sprinter | -7/Lower Caves Hacker-Sprinter | -7/Lower Caves Hacker-Sprinter | -7/Zion Hacker-Sprinter | -6/Proximity Caves Hacker-Scout | -6/Factory Sprinter | -6/Lower Caves Sprinter | -6/Lower Caves Sprinter | -6/Data Miner Sprinter | -5/Proximity Caves Hacker-Sprinter | -5/Factory Hacker-Sprinter | -5/DSF Hacker-Scout | -4/Factory Scavenger-Mutant | -4/Upper Caves Resources | -11 -10 -10 -9 -9 -9 -8 -8 -8 -7 -7 -7 -7 -6 -6 -6 -6 -6 -5 -5 -5 -4 -4 ----------- Run | Yrd Mat Min Mat Min Exi Min Mat Gar Fac Low Low Zio Pro Fac Low Low Dat Pro Fac DSF Fac Upp Matter Collected 3591 | 220 257 174 542 30 . 40 485 185 426 . 85 88 175 365 . . . 71 . . 339 109 Remotely . | . . . . . . . . . . . . . . . . . . . . . . . Salvage Created 7548 | 277 847 220 1894 189 26 96 1398 426 756 . 60 . 112 421 . . . . . . 603 223 Parts 386 | 20 49 12 102 16 1 2 78 17 28 . 5 . 4 11 . . . . . . 27 14 Haulers Intercepted 13 | . 2 . 5 . . . 1 . 2 . . . . 3 . . . . . . . . Recyclers Shooed 6 | 1 . . 2 . . . . . 1 . . . . 1 . . . . . . 1 . Parts Field Recycled . | . . . . . . . . . . . . . . . . . . . . . . . Retrieved Matter . | . . . . . . . . . . . . . . . . . . . . . . . Parts Self-Destructed 22 | . . . . . . . . . . . 3 . 4 . . . . 4 . . . 11 Prevented . | . . . . . . . . . . . . . . . . . . . . . . . Kills | -11 -10 -10 -9 -9 -9 -8 -8 -8 -7 -7 -7 -7 -6 -6 -6 -6 -6 -5 -5 -5 -4 -4 ------- Run | Yrd Mat Min Mat Min Exi Min Mat Gar Fac Low Low Zio Pro Fac Low Low Dat Pro Fac DSF Fac Upp Combat Hostiles Destroyed 131 | . 18 7 33 7 . 2 26 12 3 . 4 . 2 2 . . . . . . 8 7 Melee 14 | . . . . . . . . . . . . . . 1 . . . . . . 8 5 Guns 91 | . 12 2 28 7 . 2 26 7 2 . 2 . 2 1 . . . . . . . . AOE 24 | . 6 5 5 . . . . 4 . . 2 . . . . . . . . . . 2 Classes Destroyed 19 | 2 8 1 2 . 1 . 2 1 . . . . 2 . . . . . . . . . Worker 5 | . 2 . 2 . . . . . 1 . . . . . . . . . . . . . Builder 4 | . 1 1 1 . . . 1 . . . . . . . . . . . . . . . Tunneler 11 | 9 . 1 . . . . . . 1 . . . . . . . . . . . . . Hauler 13 | . 2 . 5 . . . 1 . 2 . . . . 3 . . . . . . . . Recycler 14 | 1 1 . 3 . . . 1 . 5 . . . . . . . . . . . 3 . Mechanic 1 | . 1 . . . . . . . . . . . . . . . . . . . . . Operator 4 | . 1 . 2 . . . . . 1 . . . . . . . . . . . . . Watcher 16 | . 1 . 5 . . . 5 . 2 . . . . 1 . . . . . . 2 . Swarmer 49 | . 5 3 6 4 . . 10 4 . . 4 . . . . . . . . . 8 5 Grunt 43 | . 13 . 16 2 . 2 3 3 3 . . . . . . . . . . . . 1 Brawler 4 | . . . 1 1 . . . 2 . . . . . . . . . . . . . . Duelist 2 | . . . . . . . . 1 . . . . . . . . . . . . . 1 Sentry 22 | . . . 10 . . . 9 2 . . . . . 1 . . . . . . . . Specialist 2 | . . . . . . . 2 . . . . . . . . . . . . . . . Hunter 2 | . . . . . . . 2 . . . . . . . . . . . . . . . Programmer 2 | . . . . . . . . . . . . . 1 1 . . . . . . . . Zionite 1 | . . . . . 1 . . . . . . . . . . . . . . . . . Assembled 4 | . . 4 . . . . . . . . . . . . . . . . . . . . Fireman 1 | . . . . . . . . . . . . . 1 . . . . . . . . . Best Kill Streak 8 | 3 8 3 5 3 . 2 6 4 6 . 4 . 2 1 . . . . . . 8 5 Combat Bots Only 6 | . 6 3 4 3 . 2 5 4 2 . 4 . 2 1 . . . . . . 5 5 Max Kills in Single Turn 4 | 1 3 2 4 1 1 1 2 2 1 . 2 . 1 1 . . . . . . 1 1 Gunslinging 1 | . . . 1 . . . 1 . . . . . . . . . . . . . . . Exploded 2 | . 2 2 2 . . . . 2 . . 2 . . . . . . . . . . 1 Melee 1 | . . . . . . . . . . . . . . 1 . . . . . . 1 1 Uniques/NPCs Destroyed . | . . . . . . . . . . . . . . . . . . . . . . . Combat | -11 -10 -10 -9 -9 -9 -8 -8 -8 -7 -7 -7 -7 -6 -6 -6 -6 -6 -5 -5 -5 -4 -4 -------- Run | Yrd Mat Min Mat Min Exi Min Mat Gar Fac Low Low Zio Pro Fac Low Low Dat Pro Fac DSF Fac Upp Hostile Shots Fired 796 | . 68 18 111 38 . 2 124 44 31 . 42 . 2 39 7 . . 50 . 4 59 157 Missed 266 | . 21 5 33 6 . 1 27 10 16 . 18 . 1 18 3 . . 20 . 1 26 60 Damage Taken 8224 | . 545 337 1032 320 . 20 1300 476 215 . 388 . 25 379 8 . . 550 . 170 536 1923 Core 2082 | . 91 40 145 71 . . 95 23 53 . 92 . 11 78 . . . 168 . 58 108 1049 Absorbed by Shields 37 | . . . . . . . . 36 . . . . . . . . . . . 1 . . Regen/Repaired (Parts) 439 | . 43 . 71 . . . 289 . . . . . . 36 . . . . . . . . Core Remaining (%) 73 | 100 . 47 . . . 46 . 78 . . . . 77 . . . . 71 . 94 . . Volleys Fired 500 | 35 80 27 105 17 1 2 84 41 60 . 7 . 2 31 1 . . 2 2 . . 3 Largest 2 | 2 2 2 2 2 1 2 2 2 2 . 2 . 2 2 2 . . 2 2 . . 1 Hottest 126 | 90 90 80 126 119 63 119 116 116 122 . 120 . 120 120 40 . . 120 40 . . 36 Shots Fired 890 | 70 125 30 203 34 1 4 168 72 104 . 12 . 4 50 2 . . 4 4 . . 3 Gun 851 | 70 117 26 196 34 1 4 168 67 93 . 11 . 4 50 2 . . 4 4 . . . Cannon 11 | . . . . . . . . . 11 . . . . . . . . . . . . . Launcher 28 | . 8 4 7 . . . . 5 . . 1 . . . . . . . . . . 3 Special . | . . . . . . . . . . . . . . . . . . . . . . . Kinetic 23 | . 12 . . . . . . . 11 . . . . . . . . . . . . . Thermal 806 | 70 80 18 196 34 1 4 168 67 93 . 11 . 4 50 2 . . 4 4 . . . Explosive 28 | . 8 4 7 . . . . 5 . . 1 . . . . . . . . . . 3 Electromagnetic 33 | . 25 8 . . . . . . . . . . . . . . . . . . . . Robot Hit Streak 19 | 9 14 3 18 10 4 3 13 11 8 . 7 . 5 19 1 . . 5 9 . . . Robot Miss Streak 6 | 3 6 2 3 2 . 1 3 3 3 . 2 . . 2 1 . . . . . . . Penetration Max . | . . . . . . . . . . . . . . . . . . . . . . . Secondary Targets 8 | . . . 3 2 . . 1 2 . . . . . . . . . . . . . . Max Gunslinging Chain 1 | . . . 1 1 . . 1 1 . . . . . . . . . . . . . . Shots Hit Robots 586 | 44 77 14 137 21 1 3 104 34 53 . 8 . 4 48 2 . . 4 4 . 21 7 Core Hits 275 | 11 53 10 65 9 1 2 49 14 22 . 3 . 3 10 . . . 1 . . 11 11 Critical Kills 1 | . . . . . . . . . . . . . . 1 . . . . . . . . Critical Parts Destroyed 2 | . . . . . . . . . . . . . . 2 . . . . . . . . Critical Strikes 37 | . 1 . 9 1 . . 7 3 5 . . . . 6 . . . . . . 5 . Burn 28 | . . . 9 1 . . 7 3 5 . . . . 3 . . . . . . . . Corrupt 1 | . 1 . . . . . . . . . . . . . . . . . . . . . Smash 3 | . . . . . . . . . . . . . . 3 . . . . . . . . Impale 5 | . . . . . . . . . . . . . . . . . . . . . 5 . Melee Attacks 93 | . . . . . . . . . . 1 3 . . 36 1 . . . . . 38 14 Impact 41 | . . . . . . . . . . 1 3 . . 36 1 . . . . . . . Slashing . | . . . . . . . . . . . . . . . . . . . . . . . Piercing 52 | . . . . . . . . . . . . . . . . . . . . . 38 14 Sneak Attacks 8 | . . . . . . . . . . . . . . 2 . . . . . . 5 1 Combat Hostiles 1 | . . . . . . . . . . . . . . . . . . . . . . 1 Follow-up Attacks . | . . . . . . . . . . . . . . . . . . . . . . . Damage Inflicted 13886 | 531 1516 432 3023 371 16 63 1990 975 1072 . 368 . 130 1681 75 . . 148 52 . 1012 431 Guns 9568 | 531 1006 172 2399 362 16 49 1990 651 1072 . 176 . 130 794 20 . . 148 52 . . . Cannons . | . . . . . . . . . . . . . . . . . . . . . . . Explosions 2081 | . 509 260 622 . . . . 324 . . 192 . . . . . . . . . . 174 Melee 2211 | . . . . . . . . . . . . . . 887 55 . . . . . 1012 257 Ramming 26 | . 1 . 2 9 . 14 . . . . . . . . . . . . . . . . Kinetic 55 | . 55 . . . . . . . . . . . . . . . . . . . . . Thermal 9294 | 531 791 113 2399 362 16 49 1990 651 1072 . 176 . 130 794 20 . . 148 52 . . . Explosive 1968 | . 423 233 622 . . . . 324 . . 192 . . . . . . . . . . 174 Electromagnetic 332 | . 246 86 . . . . . . . . . . . . . . . . . . . . Impact 942 | . . . . . . . . . . . . . . 887 55 . . . . . . . Slashing . | . . . . . . . . . . . . . . . . . . . . . . . Piercing 1269 | . . . . . . . . . . . . . . . . . . . . . 1012 257 Highest Corruption 6 | . . 6 . . . . 3 3 2 . . . 1 . . . . 3 . . . . Average Corruption 2 | . . 5 . . . . 1 3 1 . . . 1 . . . . 1 . . . . Corruption Purged 2 | . . . . . . . . . 2 . . . . . . . . . . . . . Corruption Blocked . | . . . . . . . . . . . . . . . . . . . . . . . Effects 97 | . . 25 . . . . 47 20 4 . . . . . . . . 1 . . . . Message Errors 20 | . . 4 . . . . 10 5 1 . . . . . . . . . . . . . Matter Fused 29 | . . 7 . . . . 18 4 . . . . . . . . . . . . . . Heat Flow Errors 15 | . . 4 . . . . 8 2 1 . . . . . . . . . . . . . Energy Discharges 11 | . . 4 . . . . 4 2 1 . . . . . . . . . . . . . Data Loss (minor) 13 | . . 4 . . . . 5 3 1 . . . . . . . . . . . . . Data Loss (major) 4 | . . . . . . . 1 2 . . . . . . . . . 1 . . . . Misfires 2 | . . 1 . . . . . 1 . . . . . . . . . . . . . . Alerts 1 | . . . . . . . 1 . . . . . . . . . . . . . . . Weapon Failures 2 | . . 1 . . . . . 1 . . . . . . . . . . . . . . Overload Shots 29 | . . . . . . . . . . . 4 . 4 17 . . . 4 . . . . Overflow Damage 716 | . . 46 14 . . . . 39 . . 43 . . 281 . . . . . . 255 38 Projectiles . | . . . . . . . . . . . . . . . . . . . . . . . Explosions 180 | . . 46 14 . . . . 39 . . 43 . . . . . . . . . . 38 Melee 536 | . . . . . . . . . . . . . . 281 . . . . . . 255 . Knockbacks 2 | . . . . . . . . . . . . . . 2 . . . . . . . . Impact 2 | . . . . . . . . . . . . . . 2 . . . . . . . . Kinetic . | . . . . . . . . . . . . . . . . . . . . . . . Secondary . | . . . . . . . . . . . . . . . . . . . . . . . Self-Inflicted Damage 282 | . 49 102 13 . . . . 29 . . 33 . . . . . . . . . . 56 Shots 12 | . 2 5 1 . . . . 1 . . 1 . . . . . . . . . . 2 Rammed 7 | . 1 . 3 2 . 1 . . . . . . . . . . . . . . . . Targets Rammed 8 | . 1 . 4 2 . 1 . . . . . . . . . . . . . . . . Kicked . | . . . . . . . . . . . . . . . . . . . . . . . Crushed 1 | . . . 1 . . . . . . . . . . . . . . . . . . . Highest Temperature 474 | 240 320 256 240 318 28 132 343 245 255 . 114 474 138 132 128 45 26 152 . . 60 347 Average Temperature 54 | 88 90 68 48 169 21 70 45 61 72 . 63 278 94 13 40 23 14 53 . . 27 175 Received Heat Transfer 1974 | . 210 60 432 84 . 9 342 152 117 . . . 20 27 . . . . . . 27 494 Effects 3 | . 1 . . 1 . . . . . . . 1 . . . . . . . . . . Energy Bleed 1 | . . . . 1 . . . . . . . . . . . . . . . . . . Matter Decay 1 | . 1 . . . . . . . . . . . . . . . . . . . . . Damage (major) 1 | . . . . . . . . . . . . 1 . . . . . . . . . . Siege Activations . | . . . . . . . . . . . . . . . . . . . . . . . Robots Corrupted . | . . . . . . . . . . . . . . . . . . . . . . . Combat Hostiles . | . . . . . . . . . . . . . . . . . . . . . . . Parts Fried 4 | . 1 . . . . . . . . . . . 1 2 . . . . . . . . Impact Corruptions 6 | . . . . . . . . . . . . . . 6 . . . . . . . . Robots Melted 2 | . . . . . . . . 1 1 . . . . . . . . . . . . . Combat Hostiles 2 | . . . . . . . . 1 1 . . . . . . . . . . . . . Parts Melted 40 | . 2 . 14 1 . . 15 3 3 . . . . 2 . . . . . . . . Heat Transferred 20905 | 1377 1753 175 5846 851 37 111 4440 1480 2368 . 309 . 200 1573 37 . . 200 148 . . . Parts Sabotaged . | . . . . . . . . . . . . . . . . . . . . . . . Parts Stolen 3 | . . . . . . . . . . . . . . . 3 . . . . . . . Parts Stripped . | . . . . . . . . . . . . . . . . . . . . . . . Power Chain Reactions 2 | . 1 1 . . . . . . . . . . . . . . . . . . . . Alert | -11 -10 -10 -9 -9 -9 -8 -8 -8 -7 -7 -7 -7 -6 -6 -6 -6 -6 -5 -5 -5 -4 -4 ------- Run | Yrd Mat Min Mat Min Exi Min Mat Gar Fac Low Low Zio Pro Fac Low Low Dat Pro Fac DSF Fac Upp Peak Influence 800 | 50 275 84 583 328 . 60 337 800 542 . . . . 181 . . . . 59 57 350 . Initial 420 | . . 43 5 163 . . 17 170 420 . . . . 40 . . . . 59 41 29 . Average 225 | 28 124 33 400 144 . 14 178 534 415 . . . . 91 . . . . 59 43 209 . Maximum Alert Level 3 | . 1 . 2 1 . . 1 3 2 . . . . . . . . . . . 1 . Low Security (%) 54 | 100 84 100 11 63 . 100 61 4 . . . . . 100 . . . . 100 100 33 . Level 1 23 | . 15 . 20 36 . . 38 20 35 . . . . . . . . . . . 66 . Level 2 19 | . . . 68 . . . . 43 64 . . . . . . . . . . . . . Level 3 1 | . . . . . . . . 31 . . . . . . . . . . . . . . Level 4 . | . . . . . . . . . . . . . . . . . . . . . . . Level 5 . | . . . . . . . . . . . . . . . . . . . . . . . High Security . | . . . . . . . . . . . . . . . . . . . . . . . Max Security . | . . . . . . . . . . . . . . . . . . . . . . . Squads Dispatched 26 | . 6 . 2 . . . 3 . 7 . . . . 5 . . . . 1 1 1 . Investigation 11 | . 5 . . . . . 2 . 2 . . . . 1 . . . . 1 . . . Extermination 3 | . . . . . . . . . 1 . . . . 1 . . . . . . 1 . Reinforcement 9 | . 1 . 2 . . . 1 . 4 . . . . . . . . . . 1 . . Assault . | . . . . . . . . . . . . . . . . . . . . . . . Garrison 3 | . . . . . . . . . . . . . . 3 . . . . . . . . Intercept . | . . . . . . . . . . . . . . . . . . . . . . . Searches Triggered . | . . . . . . . . . . . . . . . . . . . . . . . Construction Impeded . | . . . . . . . . . . . . . . . . . . . . . . . Haulers Reinforced 1 | . . . . . . . . . 1 . . . . . . . . . . . . . Active Scanning Responses . | . . . . . . . . . . . . . . . . . . . . . . . Cargo Convoy Interrupts . | . . . . . . . . . . . . . . . . . . . . . . . Stealth | -11 -10 -10 -9 -9 -9 -8 -8 -8 -7 -7 -7 -7 -6 -6 -6 -6 -6 -5 -5 -5 -4 -4 --------- Run | Yrd Mat Min Mat Min Exi Min Mat Gar Fac Low Low Zio Pro Fac Low Low Dat Pro Fac DSF Fac Upp Distress Signals 9 | . 2 . 2 . . . 4 . 1 . . . . . . . . . . . . . Communications Jammed . | . . . . . . . . . . . . . . . . . . . . . . . Distress Signals . | . . . . . . . . . . . . . . . . . . . . . . . Times Spotted 300 | . 40 7 53 7 . 8 37 15 23 . 13 . 2 20 6 4 . 11 . 5 22 27 Peak Tracking Total 13 | . 5 3 7 4 2 3 5 4 8 . 5 . 1 6 3 2 . 3 . 5 5 13 Tactical Retreats 33 | . 2 . 2 . . 1 4 . 5 . 2 . . 4 . . . 4 . 1 3 5 Traps | -11 -10 -10 -9 -9 -9 -8 -8 -8 -7 -7 -7 -7 -6 -6 -6 -6 -6 -5 -5 -5 -4 -4 ------- Run | Yrd Mat Min Mat Min Exi Min Mat Gar Fac Low Low Zio Pro Fac Low Low Dat Pro Fac DSF Fac Upp Traps Triggered 9 | . 2 . . . . . 1 2 1 . . . . . . . . . . 3 . . Indirectly . | . . . . . . . . . . . . . . . . . . . . . . . Trap Hack Attempts . | . . . . . . . . . . . . . . . . . . . . . . . Triggered . | . . . . . . . . . . . . . . . . . . . . . . . Disarmed . | . . . . . . . . . . . . . . . . . . . . . . . Reprogrammed . | . . . . . . . . . . . . . . . . . . . . . . . Reused . | . . . . . . . . . . . . . . . . . . . . . . . Traps Extracted . | . . . . . . . . . . . . . . . . . . . . . . . Installed . | . . . . . . . . . . . . . . . . . . . . . . . Triggered . | . . . . . . . . . . . . . . . . . . . . . . . Machines | -11 -10 -10 -9 -9 -9 -8 -8 -8 -7 -7 -7 -7 -6 -6 -6 -6 -6 -5 -5 -5 -4 -4 ---------- Run | Yrd Mat Min Mat Min Exi Min Mat Gar Fac Low Low Zio Pro Fac Low Low Dat Pro Fac DSF Fac Upp Machines Disabled 9 | . 3 . 1 1 . . 1 2 1 . . . . . . . . . . . . . Max in Single Turn 1 | . 1 . 1 1 . . 1 1 1 . . . . . . . . . . . . . Garrison Access 2 | . . . . . . . . . 1 . . . . 1 . . . . . . . . Garrison Relay 2 | . . . . . . . . 2 . . . . . . . . . . . . . . Machines Repaired . | . . . . . . . . . . . . . . . . . . . . . . . Machines Dismantled . | . . . . . . . . . . . . . . . . . . . . . . . Machines Sabotaged . | . . . . . . . . . . . . . . . . . . . . . . . Overloaded Fab Kills . | . . . . . . . . . . . . . . . . . . . . . . . Hacking | -11 -10 -10 -9 -9 -9 -8 -8 -8 -7 -7 -7 -7 -6 -6 -6 -6 -6 -5 -5 -5 -4 -4 --------- Run | Yrd Mat Min Mat Min Exi Min Mat Gar Fac Low Low Zio Pro Fac Low Low Dat Pro Fac DSF Fac Upp Machines Accessed 90 | . 7 1 16 . 2 . 17 4 13 . . . . 17 1 . 4 . 3 . 5 . Terminals 49 | . 5 . 10 . . . 11 4 8 . . . . 7 . . . . 1 . 3 . Fabricators 3 | . . . . . . . . . 1 . . . . 1 . . . . . . 1 . Repair Stations 9 | . 1 . 2 . . . 2 . 1 . . . . 2 . . . . 1 . . . Recycling Units 7 | . 1 . 2 . . . 1 . 2 . . . . 1 . . . . . . . . Scanalyzers 8 | . . . 2 . . . 2 . . . . . . 3 . . . . . . 1 . Garrison Access 6 | . . . . . . . 1 . 1 . . . . 3 . . . . 1 . . . Total Hacks 269 | . 16 1 49 . 24 . 44 9 30 . . . . 49 1 . 27 . 6 . 13 . Successful 166 | . 6 1 27 . 24 . 29 4 13 . . . . 22 1 . 27 . 2 . 10 . Failed 102 | . 10 . 22 . . . 14 5 17 . . . . 27 . . . . 4 . 3 . Catastrophic 18 | . 2 . 4 . . . 2 . 2 . . . . 5 . . . . 1 . 2 . Database Lockouts 1 | . . . . . . . 1 . . . . . . . . . . . . . . . Manual 74 | . 9 . 28 . 1 . 11 1 7 . . 4 . 12 . . . . . . 1 . Terminals 125 | . 11 . 32 . . . 27 9 19 . . . . 19 . . . . 2 . 6 . Fabricators 3 | . . . . . . . . . 1 . . . . 1 . . . . . . 1 . Repair Stations 29 | . 3 . 5 . . . 8 . 5 . . . . 7 . . . . 1 . . . Recycling Units 13 | . 2 . 5 . . . 1 . 4 . . . . 1 . . . . . . . . Scanalyzers 31 | . . . 7 . . . 7 . . . . . . 11 . . . . . . 6 . Garrison Access 15 | . . . . . . . 1 . 1 . . . . 10 . . . . 3 . . . Terminal Hacks 89 | . . 1 9 . 24 . 9 4 8 . . . . 2 1 . 27 . 1 . 3 . Record 34 | . . . . . 23 . . . . . . . . . . . 11 . . . . . Part Schematic 12 | . . . 3 . . . 1 . . . . . . . . . 8 . . . . . Robot Schematic 5 | . . . . . . . . . . . . . . . . . 5 . . . . . Prototype ID Bank 6 | . . . 1 . . . 1 . 1 . . . . . . . 3 . . . . . Open Door 4 | . . 1 . . . . . 2 . . . . . . 1 . . . . . . . Open DSF 3 | . . . . . . . . . 1 . . . . . . . . . 1 . 1 . Branch Access Points 1 | . . . . . . . . . 1 . . . . . . . . . . . . . Emergency Access Points 1 | . . . . . . . . 1 . . . . . . . . . . . . . . Terminal Index 2 | . . . 1 . . . 1 . . . . . . . . . . . . . . . Alert Level 2 | . . . 1 . . . 1 . . . . . . . . . . . . . . . Unreport Threat 1 | . . . 1 . . . . . . . . . . . . . . . . . . . Locate Traps 3 | . . . . . . . . . 3 . . . . . . . . . . . . . Transport Status 1 | . . . . . . . . . . . . . . . . . . . . . 1 . Hauler Manifests 4 | . . . . . . . 1 . 1 . . . . 1 . . . . . . 1 . Registered Components 3 | . . . 1 . . . 1 . 1 . . . . . . . . . . . . . Zone Layout 5 | . . . 1 . . . 3 . . . . . . 1 . . . . . . . . Garrison Registry 1 | . . . . . . . . 1 . . . . . . . . . . . . . . Derelict Proto ID Bank 1 | . . . . . 1 . . . . . . . . . . . . . . . . . Fabricator Hacks 2 | . . . . . . . . . 1 . . . . 1 . . . . . . . . Network Status 2 | . . . . . . . . . 1 . . . . 1 . . . . . . . . Repair Station Hacks 21 | . 2 . 4 . . . 8 . 1 . . . . 5 . . . . 1 . . . Scan Component 11 | . 1 . 2 . . . 4 . 1 . . . . 3 . . . . . . . . Repair 9 | . 1 . 2 . . . 4 . . . . . . 2 . . . . . . . . Refit 1 | . . . . . . . . . . . . . . . . . . . 1 . . . Recycling Unit Hacks . | . . . . . . . . . . . . . . . . . . . . . . . Scanalyzer 29 | . . . 7 . . . 6 . . . . . . 10 . . . . . . 6 . Insert Component 14 | . . . 4 . . . 3 . . . . . . 5 . . . . . . 2 . Analyze 15 | . . . 3 . . . 3 . . . . . . 5 . . . . . . 4 . Garrison Access Hacks 3 | . . . . . . . 1 . 1 . . . . 1 . . . . . . . . Unlock Access 1 | . . . . . . . 1 . . . . . . . . . . . . . . . Seal Access 2 | . . . . . . . . . 1 . . . . 1 . . . . . . . . Unauthorized Hacks 22 | . 4 . 7 . . . 5 . 2 . . . . 3 . . . . . . 1 . Terminals 14 | . 3 . 4 . . . 5 . 1 . . . . 1 . . . . . . . . Assimilate 9 | . 2 . 3 . . . 4 . . . . . . . . . . . . . . . Operators 5 | . 1 . 1 . . . 1 . 1 . . . . 1 . . . . . . . . Fabricators 1 | . . . . . . . . . . . . . . . . . . . . . 1 . Haulers 1 | . . . . . . . . . . . . . . . . . . . . . 1 . Repair Stations . | . . . . . . . . . . . . . . . . . . . . . . . Recycling Units 6 | . 1 . 3 . . . . . 1 . . . . 1 . . . . . . . . Reject 2 | . . . 2 . . . . . . . . . . . . . . . . . . . Recyclers 3 | . . . 1 . . . . . 1 . . . . 1 . . . . . . . . Tunnel 1 | . 1 . . . . . . . . . . . . . . . . . . . . . Scanalyzers . | . . . . . . . . . . . . . . . . . . . . . . . Garrison Access 1 | . . . . . . . . . . . . . . 1 . . . . . . . . Watchers 1 | . . . . . . . . . . . . . . 1 . . . . . . . . Data Cores Recovered . | . . . . . . . . . . . . . . . . . . . . . . . Used . | . . . . . . . . . . . . . . . . . . . . . . . Hacking Detections 60 | . 6 . 13 . . . 12 3 9 . . . . 13 . . . . 1 . 3 . Full Trace Events 9 | . 2 . 1 . . . 2 1 1 . . . . 1 . . . . 1 . . . Feedback Events 2 | . . . . . . . 2 . . . . . . . . . . . . . . . Corruption 2 | . . . . . . . 2 . . . . . . . . . . . . . . . Feedback Blocked . | . . . . . . . . . . . . . . . . . . . . . . . Robot Schematics Acquired 5 | . . . . . . . . . . . . . . . . . 5 . . . . . Robots Built . | . . . . . . . . . . . . . . . . . . . . . . . Authchips . | . . . . . . . . . . . . . . . . . . . . . . . Time . | . . . . . . . . . . . . . . . . . . . . . . . Total Robot Build Rating . | . . . . . . . . . . . . . . . . . . . . . . . Part Schematics Acquired 23 | . . . 6 . . . 3 . . . . . . 4 . . 8 . . . 2 . Parts Built . | . . . . . . . . . . . . . . . . . . . . . . . Authchips . | . . . . . . . . . . . . . . . . . . . . . . . Time . | . . . . . . . . . . . . . . . . . . . . . . . Total Part Build Rating . | . . . . . . . . . . . . . . . . . . . . . . . Parts Repaired 9 | . 1 . 2 . . . 4 . . . . . . 2 . . . . . . . . Time 382 | . 19 . 70 . . . 202 . . . . . . 91 . . . . . . . . Parts Recycled . | . . . . . . . . . . . . . . . . . . . . . . . Recycled Matter . | . . . . . . . . . . . . . . . . . . . . . . . Retrieved Matter . | . . . . . . . . . . . . . . . . . . . . . . . Retrieved Components . | . . . . . . . . . . . . . . . . . . . . . . . Parts Scanalyzed 12 | . . . 3 . . . 3 . . . . . . 4 . . . . . . 2 . Part Schematics Acquired 12 | . . . 3 . . . 3 . . . . . . 4 . . . . . . 2 . Parts Damaged 2 | . . . . . . . . . . . . . . 2 . . . . . . . . Bothacking | -11 -10 -10 -9 -9 -9 -8 -8 -8 -7 -7 -7 -7 -6 -6 -6 -6 -6 -5 -5 -5 -4 -4 ------------ Run | Yrd Mat Min Mat Min Exi Min Mat Gar Fac Low Low Zio Pro Fac Low Low Dat Pro Fac DSF Fac Upp Used RIF Installer . | . . . . . . . . . . . . . . . . . . . . . . . Robots Hacked . | . . . . . . . . . . . . . . . . . . . . . . . Non-combat . | . . . . . . . . . . . . . . . . . . . . . . . Combat . | . . . . . . . . . . . . . . . . . . . . . . . Robot Hacks Applied . | . . . . . . . . . . . . . . . . . . . . . . . Relay Couplers Released 8 | . . . . . . . . 8 . . . . . . . . . . . . . . Machine Destruction 8 | . . . . . . . . 8 . . . . . . . . . . . . . . Fabnet Peak Effective % . | . . . . . . . . . . . . . . . . . . . . . . . Robots Rewired . | . . . . . . . . . . . . . . . . . . . . . . . Allies Hacked . | . . . . . . . . . . . . . . . . . . . . . . . Hacks Repelled . | . . . . . . . . . . . . . . . . . . . . . . . Allies | -11 -10 -10 -9 -9 -9 -8 -8 -8 -7 -7 -7 -7 -6 -6 -6 -6 -6 -5 -5 -5 -4 -4 -------- Run | Yrd Mat Min Mat Min Exi Min Mat Gar Fac Low Low Zio Pro Fac Low Low Dat Pro Fac DSF Fac Upp Total Allies 18 | . 1 2 2 3 . . 1 2 . . . 6 . . . . . 1 . . . . Largest Group 6 | . 1 3 3 4 4 3 1 2 1 . . 6 6 3 . . . 1 1 1 . . Highest-Rated Group 204 | . 10 55 55 50 50 40 10 204 25 . . 155 155 82 . . . 96 96 96 . . Highest-Rated Ally 179 | . 10 31 31 16 16 16 10 179 25 . . 31 31 31 . . . 96 96 96 . . Total Orders 4 | . . . 4 . . . . . . . . . . . . . . . . . . . STAY 3 | . . . 3 . . . . . . . . . . . . . . . . . . . FOLLOW 1 | . . . 1 . . . . . . . . . . . . . . . . . . . Ally Attacks 100 | . . . 8 . 2 15 . 13 . . . . 12 34 . . . 10 . 6 . . Total Damage 2009 | . . . 84 . 31 188 . 516 . . . . 171 563 . . . 406 . 50 . . Kills 13 | . . . 1 . . 1 . 4 . . . . . 2 . . . 4 . 1 . . Allies Corrupted 1 | . . . . . . . . . . . . . 1 . . . . . . . . . Allies Melted . | . . . . . . . . . . . . . . . . . . . . . . . Intel | -11 -10 -10 -9 -9 -9 -8 -8 -8 -7 -7 -7 -7 -6 -6 -6 -6 -6 -5 -5 -5 -4 -4 ------- Run | Yrd Mat Min Mat Min Exi Min Mat Gar Fac Low Low Zio Pro Fac Low Low Dat Pro Fac DSF Fac Upp Robot Analysis Total . | . . . . . . . . . . . . . . . . . . . . . . . Derelict Logs Recovered 20 | . . 1 . 2 . . . . . 3 2 3 2 . 1 1 . 2 . . . 3 Drone Launches . | . . . . . . . . . . . . . . . . . . . . . . . Drone Recoveries . | . . . . . . . . . . . . . . . . . . . . . . . Exploration | -11 -10 -10 -9 -9 -9 -8 -8 -8 -7 -7 -7 -7 -6 -6 -6 -6 -6 -5 -5 -5 -4 -4 ------------- Run | Yrd Mat Min Mat Min Exi Min Mat Gar Fac Low Low Zio Pro Fac Low Low Dat Pro Fac DSF Fac Upp Turns Passed 21896 | 418 2223 1047 3535 1050 773 419 5157 1079 1105 303 533 662 321 1566 76 37 21 486 103 47 413 522 Spaces Moved 18946 | 125 993 614 1581 598 477 248 1764 397 2459 825 1228 1431 562 2590 237 141 80 985 110 77 716 708 Core 158 | . . . . . . . . . . . . . . . . . . 35 19 . . 104 Treads 6463 | 125 993 535 1326 598 477 248 1764 397 . . . . . . . . . . . . . . Legs 251 | . . . 251 . . . . . . . . . . . . . . . . . . . Wheels 83 | . . 79 4 . . . . . . . . . . . . . . . . . . . Hover . | . . . . . . . . . . . . . . . . . . . . . . . Flight 11991 | . . . . . . . . . 2459 825 1228 1431 562 2590 237 141 80 950 91 77 716 604 Fastest Speed 22 | 160 160 95 95 160 160 160 160 240 27 27 27 28 28 22 22 26 26 26 32 28 22 28 Average Speed 86 | 160 160 151 178 160 160 160 236 240 27 27 27 28 28 28 26 26 26 34 46 29 29 56 Slowest Speed 500 | 160 160 160 240 160 160 160 240 240 28 27 101 28 28 99 29 26 26 500 450 32 34 195 Overloaded Moves 105 | . . . . . . . . . . . . . . 6 48 . . . . 51 . . Propulsion Burnouts . | . . . . . . . . . . . . . . . . . . . . . . . Robots Hopped 79 | . . . . . . . . . 42 1 . . . 31 1 . . 1 . . 3 . Cave-ins Triggered . | . . . . . . . . . . . . . . . . . . . . . . . Exploration Rate (%) 65 | 6 99 92 97 99 91 48 95 61 47 85 85 88 68 47 48 17 69 89 3 89 14 65 Regions Visited 22 Branch Regions 13 Pre-discovered Areas 8 | . 1 . . 2 1 . . . . 2 . . . . . . 1 1 . . . . Known Exits Taken 10 | . . . . . . . 1 . 1 1 1 1 1 1 . . . 1 1 . 1 . Unknown Exits Taken 10 | 1 1 1 1 1 1 1 . . . . . . . . 1 1 1 . . . . . Scrap Searched 18 | . . 1 . 1 . . . . . 2 3 3 . . . . . 4 . . . 4 Spaces Dug 107 | . . 18 11 . . . . . 5 1 11 . . 27 . . . . . . 10 24 Terrain Destroyed 242 | . 40 31 43 . . . . 36 6 1 14 . . 29 . . . . . . 10 32 Melee 34 | . . . . . . . . . . 1 3 . . 18 . . . . . . 10 2 Projectile 21 | . . 1 . . . . . . 6 . 3 . . 11 . . . . . . . . AOE 187 | . 40 30 43 . . . . 36 . . 8 . . . . . . . . . . 30 Terrain Rammed . | . . . . . . . . . . . . . . . . . . . . . . . Walls Destroyed . | . . . . . . . . . . . . . . . . . . . . . . . Machines Disabled . | . . . . . . . . . . . . . . . . . . . . . . . Actions | -11 -10 -10 -9 -9 -9 -8 -8 -8 -7 -7 -7 -7 -6 -6 -6 -6 -6 -5 -5 -5 -4 -4 --------- Run | Yrd Mat Min Mat Min Exi Min Mat Gar Fac Low Low Zio Pro Fac Low Low Dat Pro Fac DSF Fac Upp Total 23231 | 276 1502 699 2088 658 486 266 2589 453 2735 901 1398 1695 720 3259 243 140 79 1129 156 100 850 809 Wait 3166 | 107 395 40 281 34 1 14 656 2 187 76 139 222 157 557 1 . . 138 39 3 46 71 Move 18773 | 124 992 613 1580 597 476 247 1763 394 2376 822 1227 1430 561 2533 234 140 79 982 109 76 710 708 Hop 70 | . . . . . . . . . 40 1 . . . 25 1 . . 1 . . 2 . Pick Up 108 | 3 12 6 24 2 2 . 14 1 9 . 1 7 . 13 . . . 1 2 1 6 4 Fast Attach 105 | . 5 2 26 . . . 13 . 9 . 5 12 . 8 . . . 2 1 1 18 3 Attach 37 | 2 1 3 1 . . . 3 1 7 . 1 1 . 6 1 . . 1 2 . 4 3 Detach 8 | . . . . . . . 2 . . . . 1 . 1 . . . . 1 . 2 1 Swap 147 | . 8 2 21 3 3 1 20 8 20 1 11 3 . 33 4 . . . . . 9 . Drop 193 | 5 8 6 46 3 3 1 34 2 27 . 4 19 . 16 . . . 2 . . 15 2 Fire 500 | 35 80 27 105 17 1 2 84 41 60 . 7 . 2 31 1 . . 2 2 . . 3 Melee 93 | . . . . . . . . . . 1 3 . . 36 1 . . . . . 38 14 Ram . | . . . . . . . . . . . . . . . . . . . . . . . Kick . | . . . . . . . . . . . . . . . . . . . . . . . Crush 8 | . 1 . 4 2 . 1 . . . . . . . . . . . . . . . . Escape Stasis 23 | . . . . . . . . 4 . . . . . . . . . . . 19 . . Rewire . | . . . . . . . . . . . . . . . . . . . . . . . Trap . | . . . . . . . . . . . . . . . . . . . . . . . Miscellaneous . | . . . . . . . . . . . . . . . . . . . . . . . Route ------- -11/Scrapyard -10/Materials (discovered 5 exits: *Mat x3 / *Min / [*Sub]) -10/Mines (discovered 2 exits: *Mat x2) -9/Materials (discovered 5 exits: *Mat x3 / [*Min x2]) -9/Mines (discovered 4 exits: *Mat x2 / *Exi / *Zio) -9/Exiles (discovered 2 exits: [*Min x2]) -8/Mines -8/Materials (discovered 3 exits: *Fac x2 / Gar) -8/Garrison (discovered 3 exits: *Fac x3) -7/Factory (discovered 5 exits: *Fac / *Sto x2 / *Low x2) -7/Lower Caves -7/Lower Caves (discovered 2 exits: *Fac / *Zio) -7/Zion (discovered 2 exits: *Dee / *Pro) -6/Proximity Caves -6/Factory (discovered 3 exits: *Fac x2 / *Low) -6/Lower Caves -6/Lower Caves -6/Data Miner -5/Proximity Caves -5/Factory -5/DSF -4/Factory -4/Upper Caves History --------- Turn | Location | Event 33 | -11/Scrapyard | Discovered new exit (range 3) 419 | -11/Scrapyard | Entered Materials 420 | -10/Materials | Build established: Mutant 1119 | -10/Materials | Derelicts attacked the area 1271 | -10/Materials | Discovered new exit (range 6) 1498 | -10/Materials | Discovered new exit (range 14) 2021 | -10/Materials | Discovered new exit (range 10) 2128 | -10/Materials | Discovered new exit (range 16) 2395 | -10/Materials | Discovered new exit (range 15) 2573 | -10/Materials | Repaired Lgt. Nuclear Core 2642 | -10/Materials | Entered Mines 2642 | -10/Mines | Accompanied by 1 ally 2648 | -10/Mines | Assembled infested the area 2797 | -10/Mines | Discovered new exit (range 14) 2955 | -10/Mines | Discovered new exit (range 11) 2957 | -10/Mines | Learned Materials garrison access intel 2980 | -10/Mines | Found the Drone Emporium 2989 | -10/Mines | Found Prototype Device 2989 | -10/Mines | Identified Decoy Drone Bay 3133 | -10/Mines | Found a hidden stash of uninstalled traps 3582 | -10/Mines | Core integrity fell below 50% 3689 | -10/Mines | Entered Materials 3689 | -9/Materials | Accompanied by 3 allies 3689 | -9/Materials | Evolved 2 slots: Propulsion x1, Utility x1 3700 | -9/Materials | Led the pair of lost Derelicts to an unsafe place 3838 | -9/Materials | Repaired Lgt. Nuclear Core 3979 | -9/Materials | Discovered new exit (range 15) 4421 | -9/Materials | Build established: Scavenger-Mutant 4523 | -9/Materials | Repaired Cooling System 5823 | -9/Materials | Discovered new exit (range 6) 6178 | -9/Materials | Discovered new exit (range 16) 6875 | -9/Materials | Discovered new exit (range 3) 7004 | -9/Materials | Discovered new exit (range 15) 7224 | -9/Materials | Entered Mines 7224 | -9/Mines | Accompanied by 2 allies 7476 | -9/Mines | Deemed a non-threat by the Exiles lab entrance 7477 | -9/Mines | Discovered new exit (range 5) 7506 | -9/Mines | Discovered new exit (range 7) 7549 | -9/Mines | Core integrity fell below 50% 7601 | -9/Mines | Learned location of Storage (-7) 7621 | -9/Mines | A Derelict revealed a hidden shortcut to a safe place 7660 | -9/Mines | Assisted by bots powering up and referring to "LRC-V3" 7863 | -9/Mines | A weapon hastily lodged in a ceiling crevice suddenly fell to the ground 7910 | -9/Mines | Received a Rocket Launcher from a helpful Derelict 7989 | -9/Mines | Discovered new exit (range 13) 8274 | -9/Mines | Entered Exiles 8274 | -9/Exiles | Accompanied by 4 allies 8298 | -9/Exiles | Discovered new exit (range 14) 8335 | -9/Exiles | Met 8R-AWN 8358 | -9/Exiles | Met EX-HEX 8444 | -9/Exiles | Met EX-DEC 8474 | -9/Exiles | Visited The Gauntlet 8658 | -9/Exiles | Learned location of Zion (-7) 8788 | -9/Exiles | Met EX-BIN 8817 | -9/Exiles | Aligned with FarCom system 8818 | -9/Exiles | Given EX-Vault access code 8855 | -9/Exiles | Opened EX-Vault 8867 | -9/Exiles | Found Deploy-a-Sentry 8874 | -9/Exiles | Found AWS/Gauss 8906 | -9/Exiles | Warned to stay clear of 0b10 Research branches 8925 | -9/Exiles | Exiles lab attacked by MAIN.C 9030 | -9/Exiles | Discovered new exit (range 10) 9046 | -9/Exiles | Attacked by the Exiles 9047 | -9/Exiles | Left Exiles lab with AWS/Gauss 9047 | -9/Exiles | Entered Mines 9047 | -8/Mines | Accompanied by 3 allies 9264 | -8/Mines | Discovered new exit (range 9) 9466 | -8/Mines | Entered Materials 9466 | -8/Materials | Evolved 2 slots: Utility x2 9467 | -8/Materials | Loaded intel: 1 garrison access location 10352 | -8/Materials | Discovered new exit (range 16) 12764 | -8/Materials | Repaired Imp. Cooling System 13011 | -8/Materials | Discovered new exit (range 10) 13319 | -8/Materials | Repaired Hvy. Armor Plating 13380 | -8/Materials | Repaired Adv. Beam Rifle 13442 | -8/Materials | Repaired Hvy. Particle Gun 14244 | -8/Materials | Central database locked down 14607 | -8/Materials | Identified exit to Garrison 14623 | -8/Materials | Entered Garrison 14623 | -8/Garrison | Accompanied by 1 ally 14673 | -8/Garrison | Discovered new exit (range 82) 14673 | -8/Garrison | Discovered new exit (range 81) 14673 | -8/Garrison | Discovered new exit (range 68) 14891 | -8/Garrison | Triggered checkpoint 14986 | -8/Garrison | Garrison Relay disabled 15083 | -8/Garrison | Rescued a captive Derelict 15111 | -8/Garrison | Attempted to access garrison exit controls, blocked by remote lockdown 15227 | -8/Garrison | Triggered checkpoint 15313 | -8/Garrison | Rescued AZ-K3N 15358 | -8/Garrison | Triggered checkpoint 15479 | -8/Garrison | Attempted to access garrison exit controls, blocked by remote lockdown 15592 | -8/Garrison | Triggered checkpoint 15702 | -8/Garrison | Entered Factory 15702 | -7/Factory | Accompanied by 1 ally 15702 | -7/Factory | Evolved 2 slots: Propulsion x2 15724 | -7/Factory | Identified exit to DSF 15988 | -7/Factory | Identified exit to Storage 15988 | -7/Factory | Identified exit to Lower Caves 15992 | -7/Factory | Build established: Hacker-Sprinter 16207 | -7/Factory | Discovered new exit (range 15) 16250 | -7/Factory | Identified exit to Factory 16807 | -7/Factory | Entered Lower Caves 16814 | -7/Lower Caves | Met a Warlord Commander 16815 | -7/Lower Caves | Learned location of Warlord (-4) 16816 | -7/Lower Caves | Warlord Commander delivered Encrypted Comm Array 16833 | -7/Lower Caves | Learned location of Extension (-5) 16851 | -7/Lower Caves | Learned 4 Factory zone layouts 16879 | -7/Lower Caves | Encountered a Warlord checkpoint 16931 | -7/Lower Caves | Learned Factory emergency access door positions 17110 | -7/Lower Caves | Discovered new exit (range 3) 17110 | -7/Lower Caves | Identified exit to Lower Caves 17110 | -7/Lower Caves | Entered another Lower Caves area 17116 | -7/Lower Caves | Encountered a Warlord checkpoint 17126 | -7/Lower Caves | Found Alien Artifact 17126 | -7/Lower Caves | Identified Core Expander 17126 | -7/Lower Caves | Installed Core Expander, added new Power slot 17132 | -7/Lower Caves | Discovered exit to Factory (range 13) 17136 | -7/Lower Caves | Learned 4 Factory zone layouts 17214 | -7/Lower Caves | Learned Factory interactive machine intel 17219 | -7/Lower Caves | Spotted B-75 Beast 17626 | -7/Lower Caves | Spotted Q9-XRJ(f) 17627 | -7/Lower Caves | Encountered a Master Thief 17629 | -7/Lower Caves | Spotted F1-GVG(f) 17630 | -7/Lower Caves | Encountered a Master Thief 17640 | -7/Lower Caves | Discovered new exit (range 12) 17643 | -7/Lower Caves | Identified exit to Zion 17643 | -7/Lower Caves | Entered Zion 17647 | -7/Zion | Acquired unknown access codes intercepted by a Zionite 17673 | -7/Zion | Discovered new exit (range 11) 17676 | -7/Zion | Identified exit to Proximity Caves 17685 | -7/Zion | Received a hallucinogenic algorithm 17699 | -7/Zion | Learned Factory trap positions 17705 | -7/Zion | Learned Factory terminal intel 17717 | -7/Zion | Gained Derelict followers 17727 | -7/Zion | Given the Hacking Drone Bay 17727 | -7/Zion | Found Prototype Device 17727 | -7/Zion | Identified Hacking Drone Bay 17791 | -7/Zion | Identified exit to Deep Caves 17824 | -7/Zion | Gained Derelict followers 17865 | -7/Zion | Found Prototype Device 17865 | -7/Zion | Identified Phasing AFG 17881 | -7/Zion | Opened final containment barrier to the Deep Caves 17885 | -7/Zion | Saw the warning signs outside the Deep Caves entrance 18008 | -7/Zion | Found Prototype Processor 18008 | -7/Zion | Identified Exp. Armor Integrity Analyzer 18011 | -7/Zion | Found Prototype Hackware 18011 | -7/Zion | Identified Exp. Hacking Suite 18013 | -7/Zion | Found Prototype Processor 18013 | -7/Zion | Identified Exp. Core Analyzer 18015 | -7/Zion | Found Prototype Processor 18015 | -7/Zion | Identified Exp. Signal Interpreter 18027 | -7/Zion | Found Prototype Processor 18027 | -7/Zion | Identified Exp. Terrain Scan Processor 18030 | -7/Zion | Found Exp. Signal Interpreter 18305 | -7/Zion | Entered Proximity Caves 18305 | -6/Proximity Caves | Accompanied by 6 allies 18492 | -6/Proximity Caves | Discovered exit to Factory (range 10) 18601 | -6/Proximity Caves | P-60 Hacker assimilated allied DB-IA7(i) 18626 | -6/Proximity Caves | Entered Factory 18626 | -6/Factory | Accompanied by 3 allies 18626 | -6/Factory | Evolved 2 slots: Utility x2 18627 | -6/Factory | Identified exit to Lower Caves 18628 | -6/Factory | Identified exit to Factory 18629 | -6/Factory | Loaded intel: 130 trap records 18631 | -6/Factory | Loaded intel: 52 interactive machine locations 18632 | -6/Factory | Loaded intel: 26 terminal locations 18921 | -6/Factory | Garrison activated, responded to threat 19193 | -6/Factory | Build established: Hacker-Scout 19364 | -6/Factory | Repaired Broken Mak. ECM Suite 19403 | -6/Factory | Repaired Imp. Sensor Array 20192 | -6/Factory | Entered Lower Caves 20192 | -6/Lower Caves | Spotted MY-0CY(f) 20192 | -6/Lower Caves | Spotted N4-2XV(f) 20192 | -6/Lower Caves | Spotted VZ-8VR(f) 20194 | -6/Lower Caves | Encountered a Master Thief 20194 | -6/Lower Caves | Encountered a Master Thief 20194 | -6/Lower Caves | Encountered a Master Thief 20195 | -6/Lower Caves | Learned Factory security intel 20244 | -6/Lower Caves | Gravity Neutralizer stolen by Master Thief 20265 | -6/Lower Caves | Discovered new exit (range 14) 20268 | -6/Lower Caves | Entered another Lower Caves area 20268 | -6/Lower Caves | Spotted 51-1JE(f) 20268 | -6/Lower Caves | Spotted Y7-2BS(f) 20270 | -6/Lower Caves | Encountered a Master Thief 20270 | -6/Lower Caves | Encountered a Master Thief 20272 | -6/Lower Caves | Discovered new exit (range 16) 20287 | -6/Lower Caves | Learned Factory trap positions 20305 | -6/Lower Caves | Entered Data Miner 20305 | -6/Data Miner | Discovered new exit (range 6) 20310 | -6/Data Miner | Met Data Miner 20316 | -6/Data Miner | Learned location of Section 7 (-2) 20316 | -6/Data Miner | Acquired the access code to Warlord's prototype stash 20320 | -6/Data Miner | Received God Mode back door access code from Data Miner 20326 | -6/Data Miner | Entered Proximity Caves 20328 | -5/Proximity Caves | Unaware initiated a cargo recovery operation 20531 | -5/Proximity Caves | Build established: Sprinter 20670 | -5/Proximity Caves | Attracted the attention of an 0b10 checkpoint 20715 | -5/Proximity Caves | Learned location of Armory (-3) 20746 | -5/Proximity Caves | Escorted by Enhanced Grunt 20775 | -5/Proximity Caves | Lost 4 parts (2p1n1u) 20812 | -5/Proximity Caves | Entered Factory 20812 | -5/Factory | Accompanied by 1 ally 20812 | -5/Factory | Evolved 2 slots: Utility x2 20813 | -5/Factory | Loaded intel: 103 trap records 20912 | -5/Factory | Identified exit to DSF 20915 | -5/Factory | Entered DSF 20915 | -5/DSF | Accompanied by 1 ally 20933 | -5/DSF | Additional patrols routed to DSF 20957 | -5/DSF | Discovered new exit (range 14) 20962 | -5/DSF | Identified exit to Factory 20962 | -5/DSF | Entered Factory 20962 | -4/Factory | Evolved 2 slots: Propulsion x1, Utility x1 21282 | -4/Factory | Discovered new exit (range 22) 21291 | -4/Factory | Lost 5 parts (1p2n2u) 21363 | -4/Factory | Identified exit to Upper Caves 21375 | -4/Factory | Entered Upper Caves 21384 | -4/Upper Caves | Learned Research garrison access intel 21417 | -4/Upper Caves | Learned location of 1 exit from Research 21582 | -4/Upper Caves | Attracted the attention of an 0b10 outpost 21611 | -4/Upper Caves | Spotted B-86 Titan 21621 | -4/Upper Caves | Lost 6 parts (1p3n2u) 21656 | -4/Upper Caves | Learned 4 Research zone layouts 21858 | -4/Upper Caves | Lost 7 parts (1p2n2u2w) 21866 | -4/Upper Caves | Core integrity fell below 50% 21886 | -4/Upper Caves | Core integrity fell below 20% 21897 | -4/Upper Caves | Destroyed by S-27 Virus with Autogun Last Messages --------------- 21827_ VTOL Module destroyed. 21827_ Adv. Melee Analysis Suite destroyed. 21827_ Slug penetrates Wall. 21830_ Penetrated by Slug. 21837_ Searching scrap... 21837_ Found Adv. Transmission Jammer. 21837_ Found Mak. Transmission Jammer. 21837_ Found Lance. 21837_ Found 27 Matter. 21838_ Dropped Thermal Shield. 21838_ Acquired Lance. 21839_ ER-C9D(r) collects Adv. Transmission Jammer. 21850_ Y-72 Warden: "REQUESTING BACKUP." 21872_ S-27 Virus destroyed. 21875_ Acquired 10 matter. 21876_ VTOL Module fries itself beyond repair. 21876_ Dropped Lgt. Nuclear Core. 21876_ Acquired Lgt. Nuclear Core. 21877_ Imp. Transmission Jammer destroyed. 21878_ VTOL Module fries itself beyond repair. Map ----- +----------------------------------------------------+ | # ##???????????????????????????????????????????? | | ##????????????????????????????????????????????? | | ####?????????????????????????????????????????????? | | ###??????????????????????????????????????????????? | | #??????????????????????????????????????????????? | | ##??????????????????????????????????????????????? | | #???????????????????????????????????????????????? | | #???????????????????????????????????????????????? | | ##???????????????????????????????????????????????? | | #????????????????????????????????????????????????? | | #????????????????????????????????????????????????? | | ?????????????????????????????????????????????????? | | ####?????????????????????????????????????????????? | | ##????????????????????????????????????????????? | | % ##???????????????????????????????????????????? | | [* #???????????????????????????????????????????? | | ## #??????????#######??????????????????????????? | | ?# ##????????## ##?????????????????????????? | | ## ###???#### #???????????#??????? #????? | | ##### #??????????? ##??? #????? | | ####?????????# ## #????? | | ## ##??######??? ??????? | | ####### ### ##???# ### ??????????? | | #?????###### #???## $ ??????????????? | | ?????????## #??## ??????????????????? | | ?######### #??# @ #?????????????????????? | | ## ## ##?# ##????????????????????? | | # #### ###??????????????????? | | # #### ##?????????????????? | | ### #?# #?????????????????? | | ##?## #?# ##????????????????? | | ##???# ###ss ##???????????????? | | ####????# ## ##s ##??????????????? | | ??#####?# ## s ## #??????????????? | | ?## ### ## ## ##??????????????? | | ?# ## ##???????????????? | | ?## ### #????????????????? | | ??# %! ####?### ## ##????????????????? | | ??# ! ##?????## ## ##????????????????? | | ??## #??????## #????????????????? | | #??# ##???????## ##????????????????? | | #??# ###?????????## ### ##?????????? ??????? | | #??# #???????????## ## ##????????? ?????? | | #??#! #??????????## ## ##???????? ???? | | #??# #?????###??# ## #??????? ?????? | | #??# !#?????# ## ### #????? % #???? | | #??# #??????# #### #### ???????? | | #### #####??## ##?# #????????????????? | | ## #???## #??# #????????????????? | | #????#### #### ##????????????????? | +----------------------------------------------------+ Best States ------------- Heat Dissipation 61 Energy Generation 26 Energy Capacity 275 Matter Stores 300 Matter Capacity 300 Sight Range 23 Robot Scan Range 18 Terrain Scan Density 1010 ECM Strength 2 Jamming Range 14 Additional Mass Support 12 Armor Coverage 825 Weapon Shielding 90 Evasion (%) 74 Melee Accuracy 8 Core Analysis 6 Armor Integrity Analysis 50 Recoil Reduction 3 Offensive Hacking 34 Defensive Hacking 20 Item Schematics ----------------- Imp. Flight Unit | -9/Materials | Scanalyzed Hacking Suite | -9/Materials | Scanalyzed Cooling System | -9/Materials | Scanalyzed Med. Storage Unit | -9/Materials | Hacked Lgt. Armor Plating | -9/Materials | Hacked Signal Interpreter | -9/Materials | Hacked Imp. Light Armor Plating | -8/Materials | Scanalyzed System Shield | -8/Materials | Scanalyzed Imp. Sensor Array | -8/Materials | Scanalyzed Lyr. Light Armor Plating | -6/Factory | Scanalyzed Gravity Neutralizer | -6/Factory | Scanalyzed Mak. ECM Suite | -6/Factory | Scanalyzed Cld. Pulse Rifle | -6/Factory | Scanalyzed Combat Drone Bay | -6/Data Miner | Free Lgt. Regenerative Plating | -6/Data Miner | Free Enh. Armored Leg | -6/Data Miner | Free Prc. Matter Filter | -6/Data Miner | Free Enh. Force Rifle | -6/Data Miner | Free Adv. Medium Treads | -6/Data Miner | Free Adv. Target Analyzer | -6/Data Miner | Free Micro-nuke Launcher | -6/Data Miner | Free Impulse Thruster | -4/Factory | Scanalyzed Lrn. Sensor Array | -4/Factory | Scanalyzed Robot Schematics ------------------ A-15 Conveyor | -6/Data Miner | Free B-48 Gladiator | -6/Data Miner | Free Y-54 Guardian | -6/Data Miner | Free A-27 Freighter | -6/Data Miner | Free E-15 Imp | -6/Data Miner | Free Fabricated ------------ Nothing Alien Tech Used ----------------- Core Expander Achievements -------------- Cya! Ooh, Shiny! Challenges ------------ None Game ------ Seed WaveThiefDriver Manual? 0 Play Time 05:18:39 Cumulative 89.2 hours Start 2024.05.03 @ 19:59:55 End 2024.05.04 @ 14:13:51 Sessions 3 Manual Loads 0 Difficulty Rogue Special Mode None Game No. 53 Rogue 53 Adventurer 0 Explorer 0 Win Type - Total 0 Types 0/0/0/0/0/0/0/0/0 Lore% 32 Gallery% 46 Achievement% 36 Wizard Run 0 Options --------- Layout 0 ASCII 0 Keyboard 0 Movement Numpad Keybinds 1 Fullscreen 1 Font 18/SmallcapsGlow Map View 76x50 Zoom Use 0% Tactical HUD 1 Map Filters NONE Filters NONE Steam 1 RUN: 0c01ae0f-9ab8-4379-a5d6-ad6bf8993936